fUST/lending_fUST_20250726
["ID","MTS","AMOUNT","RATE_DAILY","PERIOD"]
[375011465,1753501838978,-328.43181661,0.00019178,2]
[375011466,1753501838995,-462.38341549,0.00019178,2]
[375011467,1753501839007,-461.35272193,0.00019178,2]
[375011468,1753501839018,-460.0,0.00019178,2]
[375011469,1753501839027,-460.0,0.00019178,2]
[375011470,1753501839036,-300.30653817,0.00019178,2]
[375011471,1753501839047,-460.0,0.00019178,2]
[375011473,1753501839056,-418.9143448,0.00019178,2]
[375011474,1753501839066,-460.0,0.00019178,2]
[375011475,1753501839076,-460.0,0.00019178,2]
[375011478,1753501839087,-460.0,0.00019178,2]
[375011480,1753501839098,-462.14820662,0.00019178,2]
[375011482,1753501839107,-460.0,0.00019178,2]
[375011484,1753501839117,-460.0,0.00019178,2]
[375011486,1753501839127,-460.0,0.00019178,2]
[375011488,1753501839136,-460.0,0.00019178,2]
[375011490,1753501839146,-461.24724594,0.00019178,2]
[375011492,1753501839156,-472.47293805,0.00019178,2]
[375011494,1753501839167,-461.5304504,0.00019178,2]
[375011496,1753501839176,-368.33342809,0.00019178,2]
[375011498,1753501839186,-460.0,0.00019178,2]
[375011500,1753501839195,-460.0,0.00019178,2]
[375011503,1753501839205,-460.0,0.00019178,2]
[375011506,1753501839214,-183.69955394,0.00019178,2]
[375011508,1753501839223,-460.0,0.00019178,2]
[375011510,1753501839233,-603.38585314,0.00019178,2]
[375011512,1753501839242,-460.0,0.00019178,2]
[375011514,1753501839251,-460.0,0.00019178,2]
[375011515,1753501839260,-460.0,0.00019178,2]
[375011518,1753501839270,-212.66719458,0.00019178,2]
[375011520,1753501839279,-461.03166707,0.00019178,2]
[375011522,1753501839289,-460.0,0.00019178,2]
[375011524,1753501839299,-460.0,0.00019178,2]
[375011526,1753501839308,-462.60087915,0.00019178,2]
[375011528,1753501839318,-460.0,0.00019178,2]
[375011530,1753501839328,-460.0,0.00019178,2]
[375011532,1753501839338,-460.84634206,0.00019178,2]
[375011534,1753501839348,-460.0,0.00019178,2]
[375011536,1753501839357,-460.0,0.00019178,2]
[375011538,1753501839368,-460.0,0.00019178,2]
[375011540,1753501839378,-460.0,0.00019178,2]
[375011541,1753501839387,-463.70164252,0.00019178,2]
[375011544,1753501839397,-460.0,0.00019178,2]
[375011546,1753501839406,-465.04621665,0.00019178,2]
[375011549,1753501839416,-460.0,0.00019178,2]
[375011552,1753501839425,-460.0,0.00019178,2]
[375011554,1753501839435,-461.62265586,0.00019178,2]
[375011556,1753501839444,-460.0,0.00019178,2]
[375011558,1753501839454,-460.0,0.00019178,2]
[375011560,1753501839463,-460.0,0.00019178,2]
[375011562,1753501839473,-460.0,0.00019178,2]
[375011564,1753501839484,-460.0,0.00019178,2]
[375011566,1753501839493,-460.0,0.00019178,2]
[375011568,1753501839503,-460.0,0.00019178,2]
[375011569,1753501839512,-464.84347162,0.00019178,2]
[375011572,1753501839522,-460.0,0.00019178,2]
[375011574,1753501839532,-460.0,0.00019178,2]
[375011575,1753501839541,-249.7729851,0.00019178,2]
[375011577,1753501839551,-439.49981403,0.00019178,2]
[375011580,1753501839561,-460.0,0.00019178,2]
[375011582,1753501839571,-460.0,0.00019178,2]
[375011584,1753501839580,-460.0,0.00019178,2]
[375011586,1753501839590,-460.0,0.00019178,2]
[375011588,1753501839600,-460.0,0.00019178,2]
[375011590,1753501839610,-460.0,0.00019178,2]
[375011592,1753501839619,-696.9,0.00019178,2]
[375011594,1753501839628,-460.0,0.00019178,2]
[375011596,1753501839638,-460.0,0.00019178,2]
[375011598,1753501839648,-460.0,0.00019178,2]
[375011600,1753501839657,-460.0,0.00019178,2]
[375011602,1753501839667,-460.83031915,0.00019178,2]
[375011604,1753501839677,-460.0,0.00019178,2]
[375011606,1753501839686,-460.0,0.00019178,2]
[375011608,1753501839696,-460.0,0.00019178,2]
[375011610,1753501839706,-460.0,0.00019178,2]
[375011612,1753501839715,-460.90402685,0.00019178,2]
[375011614,1753501839724,-460.0,0.00019178,2]
[375011616,1753501839734,-460.0,0.00019178,2]
[375011619,1753501839753,-460.0,0.00019178,2]
[375011621,1753501839765,-460.0,0.00019178,2]
[375011623,1753501839775,-460.0,0.00019178,2]
[375011625,1753501839785,-463.34284198,0.00019178,2]
[375011627,1753501839795,-460.0,0.00019178,2]
[375011630,1753501839806,-463.56578905,0.00019178,2]
[375011632,1753501839816,-420.79500683,0.00019178,2]
[375011634,1753501839826,-460.0,0.00019178,2]
[375011636,1753501839836,-460.0,0.00019178,2]
[375011638,1753501839846,-460.0,0.00019178,2]
[375011640,1753501839855,-538.73,0.00019178,2]
[375011642,1753501839866,-460.0,0.00019178,2]
[375011644,1753501839876,-460.0,0.00019178,2]
[375011646,1753501839885,-460.0,0.00019178,2]
[375011648,1753501839896,-464.74252155,0.00019178,2]
[375011650,1753501839905,-460.0,0.00019178,2]
[375011652,1753501839915,-460.0,0.00019178,2]
[375011654,1753501839925,-463.83762708,0.00019178,2]
[375011656,1753501839934,-460.0,0.00019178,2]
[375011658,1753501839944,-565.91,0.00019178,2]
[375011660,1753501839954,-462.16146119,0.00019178,2]
[375011662,1753501839964,-460.0,0.00019178,2]
[375011677,1753501840091,-460.0,0.00019178,2]
[375011679,1753501840102,-460.0,0.00019178,2]
[375011681,1753501840111,-460.0,0.00019178,2]
[375011683,1753501840120,-446.62696623,0.00019178,2]
[375011685,1753501840130,-460.0,0.00019178,2]
[375011687,1753501840140,-460.0,0.00019178,2]
[375011689,1753501840150,-460.0,0.00019178,2]
[375011691,1753501840160,-460.0,0.00019178,2]
[375011693,1753501840171,-460.0,0.00019178,2]
[375011695,1753501840181,-460.0,0.00019178,2]
[375011697,1753501840191,-463.52755707,0.00019178,2]
[375011699,1753501840200,-460.0,0.00019178,2]
[375011701,1753501840210,-460.0,0.00019178,2]
[375011703,1753501840220,-460.0,0.00019178,2]
[375011705,1753501840230,-460.0,0.00019178,2]
[375011707,1753501840240,-460.0,0.00019178,2]
[375011709,1753501840249,-460.0,0.00019178,2]
[375011711,1753501840259,-460.0,0.00019178,2]
[375011713,1753501840269,-177.62326149,0.00019178,2]
[375011715,1753501840279,-460.0,0.00019178,2]
[375011717,1753501840288,-460.0,0.00019178,2]
[375011719,1753501840298,-462.98833529,0.00019178,2]
[375011721,1753501840308,-460.0,0.00019178,2]
[375011723,1753501840317,-460.0,0.00019178,2]
[375011725,1753501840326,-460.0,0.00019178,2]
[375011727,1753501840335,-460.0,0.00019178,2]
[375011729,1753501840344,-460.0,0.00019178,2]
[375011731,1753501840354,-463.5648563,0.00019178,2]
[375011733,1753501840374,-460.0,0.00019178,2]
[375011735,1753501840385,-460.0,0.00019178,2]
[375011737,1753501840394,-460.0,0.00019178,2]
[375011739,1753501840403,-460.0,0.00019178,2]
[375011741,1753501840412,-460.0,0.00019178,2]
[375011743,1753501840422,-460.0,0.00019178,2]
[375011745,1753501840431,-460.0,0.00019178,2]
[375011747,1753501840441,-460.0,0.00019178,2]
[375011749,1753501840450,-403.03499378,0.00019178,2]
[375011751,1753501840459,-460.0,0.00019178,2]
[375011753,1753501840468,-1285.93,0.00019178,2]
[375011755,1753501840477,-460.0,0.00019178,2]
[375011757,1753501840486,-460.76692982,0.00019178,2]
[375011759,1753501840495,-460.0,0.00019178,2]
[375011761,1753501840505,-462.90702944,0.00019178,2]
[375011763,1753501840514,-460.0,0.00019178,2]
[375011765,1753501840523,-460.0,0.00019178,2]
[375011767,1753501840532,-461.62425492,0.00019178,2]
[375011769,1753501840542,-460.0,0.00019178,2]
[375011771,1753501840551,-460.0,0.00019178,2]
[375011774,1753501840560,-460.0,0.00019178,2]
[375011775,1753501840569,-460.0,0.00019178,2]
[375011777,1753501840578,-460.0,0.00019178,2]
[375011779,1753501840587,-300.95510676,0.00019178,2]
[375011781,1753501840595,-465.52536968,0.00019178,2]
[375011783,1753501840604,-460.0,0.00019178,2]
[375011785,1753501840613,-460.0,0.00019178,2]
[375011787,1753501840622,-460.0,0.00019178,2]
[375011789,1753501840631,-460.0,0.00019178,2]
[375011791,1753501840640,-460.0,0.00019178,2]
[375011793,1753501840648,-462.01124205,0.00019178,2]
[375011795,1753501840657,-552.35977268,0.00019178,2]
[375011797,1753501840666,-1183.5,0.00019178,2]
[375011799,1753501840676,-460.0,0.00019178,2]
[375011801,1753501840687,-460.0,0.00019178,2]
[375011803,1753501840696,-498.84201633,0.00019178,2]
[375011805,1753501840705,-460.0,0.00019178,2]
[375011807,1753501840714,-460.0,0.00019178,2]
[375011809,1753501840723,-460.0,0.00019178,2]
[375011811,1753501840732,-460.0,0.00019178,2]
[375011813,1753501840741,-291.40050975,0.00019178,2]
[375011815,1753501840751,-460.0,0.00019178,2]
[375011817,1753501840759,-460.0,0.00019178,2]
[375011819,1753501840768,-460.0,0.00019178,2]
[375011821,1753501840777,-463.5782896,0.00019178,2]
[375011823,1753501840786,-460.0,0.00019178,2]
[375011825,1753501840795,-460.0,0.00019178,2]
[375011828,1753501840811,-460.0,0.00019178,2]
[375011830,1753501840820,-460.0,0.00019178,2]
[375011832,1753501840829,-460.94173601,0.00019178,2]
[375011834,1753501840838,-460.0,0.00019178,2]
[375011836,1753501840847,-460.9871696,0.00019178,2]
[375011838,1753501840857,-460.0,0.00019178,2]
[375011840,1753501840867,-469.22369722,0.00019178,2]
[375011842,1753501840876,-2783.89,0.00019178,2]
[375011844,1753501840885,-460.0,0.00019178,2]
[375011846,1753501840894,-460.0,0.00019178,2]
[375011848,1753501840902,-460.0,0.00019178,2]
[375011850,1753501840911,-460.0,0.00019178,2]
[375011853,1753501840919,-3314.68,0.00019178,2]
[375011855,1753501840928,-460.0,0.00019178,2]
[375011857,1753501840943,-460.0,0.00019178,2]
[375011860,1753501840956,-460.0,0.00019178,2]
[375011863,1753501840969,-460.0,0.00019178,2]
[375011865,1753501840978,-769.27,0.00019178,2]
[375011867,1753501840989,-463.70304553,0.00019178,2]
[375011869,1753501841001,-460.0,0.00019178,2]
[375011872,1753501841015,-466.81624125,0.00019178,2]
[375011874,1753501841030,-460.0,0.00019178,2]
[375011877,1753501841044,-460.0,0.00019178,2]
[375011880,1753501841059,-460.0,0.00019178,2]
[375011882,1753501841073,-462.81399082,0.00019178,2]
[375011884,1753501841088,-460.0,0.00019178,2]
[375011887,1753501841103,-460.0,0.00019178,2]
[375011889,1753501841116,-460.0,0.00019178,2]
[375011892,1753501841132,-464.74114331,0.00019178,2]
[375011894,1753501841144,-460.0,0.00019178,2]
[375011897,1753501841157,-460.0,0.00019178,2]
[375011899,1753501841168,-443.10377566,0.00019178,2]
[375011901,1753501841181,-460.0,0.00019178,2]
[375011904,1753501841193,-461.28144087,0.00019178,2]
[375011906,1753501841206,-460.0,0.00019178,2]
[375011908,1753501841230,-460.0,0.00019178,2]
[375011911,1753501841243,-460.0,0.00019178,2]
[375011913,1753501841257,-460.0,0.00019178,2]
[375011916,1753501841271,-460.0,0.00019178,2]
[375011918,1753501841285,-1540.88,0.00019178,2]
[375011920,1753501841296,-460.0,0.00019178,2]
[375011923,1753501841307,-460.0,0.00019178,2]
[375011925,1753501841319,-461.33378482,0.00019178,2]
[375011927,1753501841332,-460.0,0.00019178,2]
[375011930,1753501841346,-460.0,0.00019178,2]
[375011932,1753501841358,-471.41906048,0.00019178,2]
[375011934,1753501841369,-460.0,0.00019178,2]
[375011936,1753501841382,-460.0,0.00019178,2]
[375011939,1753501841395,-460.0,0.00019178,2]
[375011941,1753501841410,-464.82710296,0.00019178,2]
[375011944,1753501841422,-460.0,0.00019178,2]
[375011946,1753501841433,-460.0,0.00019178,2]
[375011947,1753501841445,-466.81932942,0.00019178,2]
[375011948,1753501841457,-460.0,0.00019178,2]
[375011949,1753501841469,-463.18578063,0.00019178,2]
[375011950,1753501841481,-460.0,0.00019178,2]
[375011951,1753501841493,-650.78,0.00019178,2]
[375011952,1753501841505,-460.0,0.00019178,2]
[375011953,1753501841516,-460.0,0.00019178,2]
[375011954,1753501841528,-1667.68,0.00019178,2]
[375011955,1753501841540,-4894.06,0.00019178,2]
[375011958,1753501841554,-460.0,0.00019178,2]
[375011960,1753501841566,-460.0,0.00019178,2]
[375011962,1753501841577,-460.0,0.00019178,2]
[375011965,1753501841589,-460.0,0.00019178,2]
[375011967,1753501841600,-247.95212396,0.00019178,2]
[375011969,1753501841611,-460.0,0.00019178,2]
[375011971,1753501841624,-460.0,0.00019178,2]
[375011974,1753501841635,-1160.44,0.00019178,2]
[375011976,1753501841647,-509.73672316,0.00019178,2]
[375011978,1753501841659,-460.0,0.00019178,2]
[375011980,1753501841671,-556.81,0.00019178,2]
[375011983,1753501841683,-460.0,0.00019178,2]
[375011985,1753501841695,-460.0,0.00019178,2]
[375011987,1753501841707,-460.0,0.00019178,2]
[375011990,1753501841718,-460.0,0.00019178,2]
[375011992,1753501841730,-763.82,0.00019178,2]
[375011994,1753501841741,-460.0,0.00019178,2]
[375011996,1753501841752,-460.0,0.00019178,2]
[375011999,1753501841764,-460.0,0.00019178,2]
[375012001,1753501841776,-1650.8,0.00019178,2]
[375012003,1753501841788,-460.0,0.00019178,2]
[375012006,1753501841802,-460.0,0.00019178,2]
[375012008,1753501841817,-1851.41,0.00019178,2]
[375012010,1753501841829,-460.0,0.00019178,2]
[375012013,1753501841841,-460.0,0.00019178,2]
[375012015,1753501841853,-462.64319519,0.00019178,2]
[375012017,1753501841866,-460.0,0.00019178,2]
[375012020,1753501841877,-460.0,0.00019178,2]
[375012022,1753501841888,-460.0,0.00019178,2]
[375012024,1753501841900,-460.0,0.00019178,2]
[375012026,1753501841912,-460.0,0.00019178,2]
[375012029,1753501841924,-460.0,0.00019178,2]
[375012031,1753501841936,-460.0,0.00019178,2]
[375012033,1753501841948,-460.0,0.00019178,2]
[375012036,1753501841960,-460.0,0.00019178,2]
[375012038,1753501841972,-461.22256401,0.00019178,2]
[375012040,1753501841983,-464.33019395,0.00019178,2]
[375012042,1753501841995,-560.34,0.00019178,2]
[375012045,1753501842007,-462.5965178,0.00019178,2]
[375012047,1753501842018,-460.0,0.00019178,2]
[375012061,1753501842147,-460.0,0.00019178,2]
[375012064,1753501842167,-460.0,0.00019178,2]
[375012066,1753501842178,-460.0,0.00019178,2]
[375012068,1753501842188,-460.0,0.00019178,2]
[375012070,1753501842198,-266.78977484,0.00019178,2]
[375012072,1753501842208,-460.0,0.00019178,2]
[375012074,1753501842217,-460.0,0.00019178,2]
[375012076,1753501842226,-461.91028988,0.00019178,2]
[375012077,1753501842236,-460.0,0.00019178,2]
[375012079,1753501842246,-460.0,0.00019178,2]
[375012081,1753501842255,-245.21327582,0.00019178,2]
[375012084,1753501842265,-460.0,0.00019178,2]
[375012086,1753501842276,-460.0,0.00019178,2]
[375012088,1753501842285,-461.7462564,0.00019178,2]
[375012090,1753501842294,-486.71,0.00019178,2]
[375012093,1753501842308,-460.0,0.00019178,2]
[375012096,1753501842318,-460.0,0.00019178,2]
[375012098,1753501842327,-460.0,0.00019178,2]
[375012100,1753501842336,-463.44161823,0.00019178,2]
[375012102,1753501842346,-460.0,0.00019178,2]
[375012104,1753501842355,-371.80634268,0.00019178,2]
[375012106,1753501842364,-460.0,0.00019178,2]
[375012108,1753501842373,-460.0,0.00019178,2]
[375012110,1753501842383,-1120.0,0.00019178,2]
[375012113,1753501842392,-1102.84,0.00019178,2]
[375012116,1753501842401,-460.0,0.00019178,2]
[375012118,1753501842411,-460.0,0.00019178,2]
[375012120,1753501842420,-460.0,0.00019178,2]
[375012123,1753501842431,-462.12351576,0.00019178,2]
[375012125,1753501842440,-460.0,0.00019178,2]
[375012127,1753501842450,-460.0,0.00019178,2]
[375012129,1753501842460,-709.84,0.00019178,2]
[375012131,1753501842469,-460.0,0.00019178,2]
[375012133,1753501842478,-463.41811104,0.00019178,2]
[375012135,1753501842488,-460.0,0.00019178,2]
[375012137,1753501842497,-460.0,0.00019178,2]
[375012139,1753501842506,-460.0,0.00019178,2]
[375012141,1753501842516,-1525.22,0.00019178,2]
[375012143,1753501842525,-460.0,0.00019178,2]
[375012145,1753501842535,-460.0,0.00019178,2]
[375012147,1753501842544,-465.17990736,0.00019178,2]
[375012149,1753501842558,-460.0,0.00019178,2]
[375012151,1753501842567,-460.0,0.00019178,2]
[375012154,1753501842577,-460.0,0.00019178,2]
[375012155,1753501842586,-460.0,0.00019178,2]
[375012158,1753501842596,-460.0,0.00019178,2]
[375012160,1753501842605,-1029.47,0.00019178,2]
[375012162,1753501842614,-460.0,0.00019178,2]
[375012164,1753501842624,-460.0,0.00019178,2]
[375012166,1753501842633,-460.0,0.00019178,2]
[375012168,1753501842642,-460.0,0.00019178,2]
[375012170,1753501842651,-460.0,0.00019178,2]
[375012172,1753501842661,-460.0,0.00019178,2]
[375012174,1753501842670,-466.7341785,0.00019178,2]
[375012176,1753501842680,-465.15393098,0.00019178,2]
[375012178,1753501842690,-460.0,0.00019178,2]
[375012180,1753501842699,-460.0,0.00019178,2]
[375012182,1753501842709,-460.0,0.00019178,2]
[375012184,1753501842719,-1014.81,0.00019178,2]
[375012186,1753501842728,-460.0,0.00019178,2]
[375012188,1753501842738,-460.0,0.00019178,2]
[375012190,1753501842747,-460.0,0.00019178,2]
[375012192,1753501842757,-593.49,0.00019178,2]
[375012194,1753501842766,-460.0,0.00019178,2]
[375012196,1753501842775,-460.0,0.00019178,2]
[375012198,1753501842785,-469.88118433,0.00019178,2]
[375012200,1753501842794,-466.20246161,0.00019178,2]
[375012202,1753501842807,-471.00453179,0.00019178,2]
[375012204,1753501842816,-460.0,0.00019178,2]
[375012206,1753501842826,-460.0,0.00019178,2]
[375012208,1753501842835,-460.0,0.00019178,2]
[375012210,1753501842844,-460.0,0.00019178,2]
[375012212,1753501842854,-469.08720227,0.00019178,2]
[375012214,1753501842864,-578.40880658,0.00019178,2]
[375012216,1753501842873,-460.0,0.00019178,2]
[375012218,1753501842883,-460.0,0.00019178,2]
[375012220,1753501842892,-460.0,0.00019178,2]
[375012222,1753501842902,-460.85877015,0.00019178,2]
[375012224,1753501842911,-460.0,0.00019178,2]
[375012226,1753501842920,-460.0,0.00019178,2]
[375012228,1753501842930,-293.46693645,0.00019178,2]
[375012230,1753501842939,-460.0,0.00019178,2]
[375012232,1753501842949,-460.85897276,0.00019178,2]
[375012234,1753501842958,-461.90795584,0.00019178,2]
[375012236,1753501842968,-427.06015107,0.00019178,2]
[375012238,1753501842977,-214.903904,0.00019178,2]
[375012240,1753501842987,-666.0,0.00019178,2]
[375012242,1753501842996,-500.0,0.00019178,2]
[375012244,1753501843006,-250.55754311,0.00019196,2]
[375012246,1753501843018,-188.51202472,0.00019284,2]
[375012248,1753501843027,-456077.95959937,0.000193,2]
[375012252,1753501843052,-453.67243545,0.000193,2]
[375012280,1753501843319,-460.0,0.00019178,2]
[375012282,1753501843329,-460.0,0.00019178,2]
[375012284,1753501843339,-90312.34877018,0.000193,2]
[375012287,1753501843350,-1173.59964158,0.000193,2]
[375012289,1753501843362,-824.49174328,0.000193,2]
[375012328,1753501843725,-263.14232272,0.000193,2]
[375012331,1753501843737,-1097.39032049,0.000193,2]
[375012333,1753501843749,-3578.98125641,0.000193,2]
[375012540,1753501845814,-460.0,0.00019178,2]
[375017274,1753502098624,276.663364,0.00013699,2]
[375017278,1753502694683,3828.34575288,0.00017,2]
[375017281,1753502793093,-1318.35931831,0.00017325,2]
[375017282,1753502793617,-167.5,0.000175,2]
[375017283,1753502793640,-200.0,0.00018,2]
[375017284,1753502793661,-196.0208884,0.00018081,2]
[375017285,1753502793683,-1200.0,0.00018166,2]
[375017286,1753502793702,-300.0,0.00018167,2]
[375017287,1753502793725,-300.0,0.00018167,2]
[375017288,1753502793745,-795.05099019,0.00018167,2]
[375017303,1753503018468,221.0,0.00025999,120]
[375017346,1753503032042,-404.94900981,0.00018167,2]
[375017348,1753503032052,-300.0,0.00018167,2]
[375017350,1753503032062,-24900.0,0.00018168,2]
[375017352,1753503032071,-424.72572754,0.000189,2]
[375017354,1753503032082,-354.5843221,0.00019073,2]
[375017356,1753503032091,-705.81446476,0.00019078,2]
[375017359,1753503032101,-151.0,0.00019166,2]
[375017362,1753503032110,-151.0,0.00019166,2]
[375017365,1753503032120,-394.2548624,0.00019166,2]
[375017368,1753503032129,-215.0738,0.00019166,2]
[375017371,1753503032139,-151.0,0.00019166,2]
[375017374,1753503032148,-151.0,0.00019166,2]
[375017377,1753503032159,-151.0,0.00019166,2]
[375017380,1753503032168,-151.0,0.00019166,2]
[375017383,1753503032177,-151.0,0.00019166,2]
[375017387,1753503032186,-151.0,0.00019166,2]
[375017390,1753503032195,-151.0,0.00019166,2]
[375017393,1753503032204,-151.0,0.00019166,2]
[375017396,1753503032214,-151.0,0.00019166,2]
[375017399,1753503032223,-283.70751699,0.00019166,2]
[375017401,1753503032232,-151.0,0.00019166,2]
[375017404,1753503032242,-153.45337885,0.00019166,2]
[375017406,1753503032251,-151.0,0.00019166,2]
[375017408,1753503032261,-151.0,0.00019166,2]
[375017410,1753503032270,-151.0,0.00019166,2]
[375017412,1753503032279,-151.0,0.00019166,2]
[375017414,1753503032289,-151.0,0.00019166,2]
[375017416,1753503032299,-151.0,0.00019166,2]
[375017418,1753503032309,-151.0,0.00019166,2]
[375017420,1753503032319,-151.0,0.00019166,2]
[375017422,1753503032327,-151.0,0.00019166,2]
[375017424,1753503032337,-151.0,0.00019166,2]
[375017426,1753503032347,-151.0,0.00019166,2]
[375017428,1753503032357,-25000.0,0.00019166,2]
[375017430,1753503032366,-9917.84472734,0.00019166,2]
[375017432,1753503032375,-151.0,0.00019166,2]
[375017434,1753503032384,-595.36,0.00019168,3]
[375017436,1753503032393,-247.47544117,0.00019173,2]
[375017438,1753503032403,-500.0,0.00019173,2]
[375017441,1753503032415,-460.0,0.00019178,2]
[375017443,1753503032425,-368.1781707,0.00019178,2]
[375017445,1753503032435,-460.0,0.00019178,2]
[375017447,1753503032446,-460.0,0.00019178,2]
[375017449,1753503032456,-460.0,0.00019178,2]
[375017451,1753503032466,-467.14840564,0.00019178,2]
[375017465,1753503032591,-461.5849914,0.00019178,2]
[375017467,1753503032601,-465.18317677,0.00019178,2]
[375017469,1753503032610,-558.63961957,0.00019178,2]
[375017471,1753503032619,-460.0,0.00019178,2]
[375017473,1753503032629,-463.77853682,0.00019178,2]
[375017475,1753503032639,-437.13363146,0.00019178,2]
[375017477,1753503032648,-461.24917933,0.00019178,2]
[375017479,1753503032657,-460.0,0.00019178,2]
[375017481,1753503032666,-460.0,0.00019178,2]
[375017483,1753503032675,-460.0,0.00019178,2]
[375017485,1753503032685,-460.0,0.00019178,2]
[375017487,1753503032694,-464.16831374,0.00019178,2]
[375017489,1753503032704,-333.47349477,0.00019178,2]
[375017491,1753503032713,-460.0,0.00019178,2]
[375017493,1753503032722,-460.0,0.00019178,2]
[375017495,1753503032732,-461.79464245,0.00019178,2]
[375017497,1753503032747,-282.48693469,0.00019178,2]
[375017499,1753503032756,-465.07811632,0.00019178,2]
[375017501,1753503032766,-460.0,0.00019178,2]
[375017503,1753503032776,-460.0,0.00019178,2]
[375017505,1753503032787,-466.75927277,0.00019178,2]
[375017507,1753503032796,-460.0,0.00019178,2]
[375017509,1753503032806,-460.0,0.00019178,2]
[375017511,1753503032816,-460.0,0.00019178,2]
[375017513,1753503032826,-460.0,0.00019178,2]
[375017515,1753503032836,-460.0,0.00019178,2]
[375017517,1753503032846,-460.0,0.00019178,2]
[375017519,1753503032855,-460.0,0.00019178,2]
[375017521,1753503032865,-460.0,0.00019178,2]
[375017523,1753503032874,-464.34845904,0.00019178,2]
[375017525,1753503032884,-460.0,0.00019178,2]
[375017527,1753503032894,-460.0,0.00019178,2]
[375017529,1753503032903,-460.0,0.00019178,2]
[375017531,1753503032912,-460.0,0.00019178,2]
[375017533,1753503032922,-460.0,0.00019178,2]
[375017535,1753503032932,-460.0,0.00019178,2]
[375017537,1753503032942,-209.96507077,0.00019178,2]
[375017539,1753503032952,-460.0,0.00019178,2]
[375017541,1753503032961,-464.83727266,0.00019178,2]
[375017542,1753503032971,-460.0,0.00019178,2]
[375017544,1753503032981,-462.67454495,0.00019178,2]
[375017547,1753503032992,-460.0,0.00019178,2]
[375017548,1753503033002,-462.04788041,0.00019178,2]
[375017551,1753503033012,-460.0,0.00019178,2]
[375017552,1753503033021,-463.51689295,0.00019178,2]
[375017554,1753503033031,-460.0,0.00019178,2]
[375017556,1753503033040,-460.0,0.00019178,2]
[375017558,1753503033049,-460.0,0.00019178,2]
[375017560,1753503033059,-460.0,0.00019178,2]
[375017562,1753503033068,-460.0,0.00019178,2]
[375017564,1753503033077,-460.0,0.00019178,2]
[375017566,1753503033089,-460.0,0.00019178,2]
[375017568,1753503033109,-460.0,0.00019178,2]
[375017570,1753503033120,-460.0,0.00019178,2]
[375017572,1753503033129,-460.0,0.00019178,2]
[375017574,1753503033138,-460.0,0.00019178,2]
[375017576,1753503033148,-460.0,0.00019178,2]
[375017578,1753503033158,-460.0,0.00019178,2]
[375017580,1753503033168,-460.0,0.00019178,2]
[375017582,1753503033178,-460.0,0.00019178,2]
[375017584,1753503033187,-460.0,0.00019178,2]
[375017586,1753503033198,-460.0,0.00019178,2]
[375017588,1753503033207,-460.0,0.00019178,2]
[375017590,1753503033217,-460.0,0.00019178,2]
[375017592,1753503033227,-460.0,0.00019178,2]
[375017594,1753503033236,-460.0,0.00019178,2]
[375017596,1753503033245,-460.0,0.00019178,2]